[Event "*** SCC Grand Prix: Titled Tuesday Blitz"]
[Site "Chess.com"]
[Date "2020.09.08"]
[Round "5"]
[White "Beltraxtor"]
[Black "Tooweak2slow03"]
[Result "1-0"]
[WhiteElo "2583"]
[BlackElo "2778"]
[TimeControl "180+1"]
[EndTime "10:57:15 PDT"]
[Termination "Beltraxtor won by resignation"]

1. e4 {[%clk 0:02:58]} 1... e6 {[%clk 0:03:00.9]} 2. d4 {[%clk 0:02:56.9]} 2...
d5 {[%clk 0:03:01.8]} 3. Nc3 {[%clk 0:02:57.3]} 3... h6 {[%clk 0:03:02.4]} 4.
exd5 {[%clk 0:02:50.9]} 4... exd5 {[%clk 0:03:02.3]} 5. Bd3 {[%clk 0:02:51.8]}
5... Bd6 {[%clk 0:03:02.5]} 6. Nxd5 {[%clk 0:02:43.8]} 6... c6 {[%clk 0:03:00]}
7. Nc3 {[%clk 0:02:36.1]} 7... Nf6 {[%clk 0:02:59.6]} 8. Nf3 {[%clk 0:02:34.8]}
8... O-O {[%clk 0:02:59.6]} 9. O-O {[%clk 0:02:33.8]} 9... Nbd7 {[%clk
0:02:59.5]} 10. h3 {[%clk 0:02:32.4]} 10... Nb6 {[%clk 0:02:59]} 11. Re1 {[%clk
0:02:31.5]} 11... Nbd5 {[%clk 0:02:59.1]} 12. Nxd5 {[%clk 0:02:29.4]} 12... Nxd5
{[%clk 0:03:00]} 13. c3 {[%clk 0:02:26.4]} 13... Bc7 {[%clk 0:02:59.7]} 14. Ne5
{[%clk 0:02:12.3]} 14... Be6 {[%clk 0:02:53.1]} 15. Qf3 {[%clk 0:02:06.8]} 15...
Nf6 {[%clk 0:02:48.1]} 16. Bf4 {[%clk 0:02:02.1]} 16... Bd5 {[%clk 0:02:42.1]}
17. Qe2 {[%clk 0:01:49.9]} 17... Re8 {[%clk 0:02:36.4]} 18. c4 {[%clk
0:01:45.7]} 18... Be6 {[%clk 0:02:36.1]} 19. Rad1 {[%clk 0:01:46]} 19... Nd7
{[%clk 0:02:32.2]} 20. Qe4 {[%clk 0:01:28.4]} 20... Nf6 {[%clk 0:02:28.2]} 21.
Qf3 {[%clk 0:01:28.8]} 21... Nd7 {[%clk 0:02:13]} 22. Bc2 {[%clk 0:00:44.4]}
22... Nxe5 {[%clk 0:01:09.4]} 23. dxe5 {[%clk 0:00:42.3]} 23... Qh4 {[%clk
0:01:09.3]} 24. Qe4 {[%clk 0:00:28.4]} 24... g6 {[%clk 0:01:08.7]} 25. Bg3
{[%clk 0:00:12.4]} 25... Qxe4 {[%clk 0:01:05.5]} 26. Rxe4 {[%clk 0:00:13.3]}
26... Bf5 {[%clk 0:01:05.5]} 27. Re2 {[%clk 0:00:13.6]} 27... Bxc2 {[%clk
0:01:04.8]} 28. Rxc2 {[%clk 0:00:14.5]} 28... Bxe5 {[%clk 0:01:00.2]} 29. Bxe5
{[%clk 0:00:15.4]} 29... Rxe5 {[%clk 0:01:00.6]} 30. Rd7 {[%clk 0:00:16.2]}
30... Rb8 {[%clk 0:00:58.9]} 31. Rcd2 {[%clk 0:00:16.3]} 31... a6 {[%clk
0:00:55.7]} 32. Rc7 {[%clk 0:00:15.8]} 32... b5 {[%clk 0:00:49]} 33. Rxc6 {[%clk
0:00:14.7]} 33... bxc4 {[%clk 0:00:49.4]} 34. Rxc4 {[%clk 0:00:15.6]} 34... Reb5
{[%clk 0:00:49.3]} 35. b3 {[%clk 0:00:15.4]} 35... h5 {[%clk 0:00:47.4]} 36. Kh2
{[%clk 0:00:14.2]} 36... Rb4 {[%clk 0:00:46.1]} 37. Rxb4 {[%clk 0:00:13.5]}
37... Rxb4 {[%clk 0:00:47]} 38. Rd5 {[%clk 0:00:14.1]} 38... Rb6 {[%clk
0:00:46.8]} 39. Kg3 {[%clk 0:00:13.2]} 39... Rc6 {[%clk 0:00:46.4]} 40. Ra5
{[%clk 0:00:11.7]} 40... Kg7 {[%clk 0:00:46.6]} 41. Kf3 {[%clk 0:00:12.1]} 41...
Rf6+ {[%clk 0:00:45.9]} 42. Ke3 {[%clk 0:00:10.4]} 42... Re6+ {[%clk 0:00:46.3]}
43. Kd4 {[%clk 0:00:09.9]} 43... Rd6+ {[%clk 0:00:44.7]} 44. Kc4 {[%clk
0:00:09]} 44... Rc6+ {[%clk 0:00:44.1]} 45. Kd5 {[%clk 0:00:08.7]} 45... Rf6
{[%clk 0:00:43.9]} 46. b4 {[%clk 0:00:06.1]} 46... g5 {[%clk 0:00:31.9]} 47. f3
{[%clk 0:00:05.3]} 47... Kg6 {[%clk 0:00:30.9]} 48. Kc4 {[%clk 0:00:05.3]} 48...
Rc6+ {[%clk 0:00:30.4]} 49. Rc5 {[%clk 0:00:05.5]} 49... Re6 {[%clk 0:00:29]}
50. g4 {[%clk 0:00:05.4]} 50... h4 {[%clk 0:00:27.3]} 51. a4 {[%clk 0:00:05.6]}
51... f6 {[%clk 0:00:27.2]} 52. b5 {[%clk 0:00:05.4]} 52... axb5+ {[%clk
0:00:28.1]} 53. axb5 {[%clk 0:00:06.3]} 53... Re1 {[%clk 0:00:29]} 54. b6 {[%clk
0:00:06.6]} 54... Rc1+ {[%clk 0:00:28.8]} 55. Kd5 {[%clk 0:00:06.4]} 55... Rb1
{[%clk 0:00:26.8]} 56. Kc6 {[%clk 0:00:06.8]} 56... Rb3 {[%clk 0:00:25.7]} 57.
b7 {[%clk 0:00:06.6]} 57... Kf7 {[%clk 0:00:25]} 58. Rb5 {[%clk 0:00:06.8]} 1-0

[Event "*** SCC Grand Prix: Titled Tuesday Blitz"]
[Site "Chess.com"]
[Date "2020.09.08"]
[Round "5"]
[White "Jumbo"]
[Black "FlamingPhoenix123"]
[Result "1/2-1/2"]
[WhiteElo "2761"]
[BlackElo "2568"]
[TimeControl "180+1"]
[EndTime "10:57:16 PDT"]
[Termination "Game drawn - insufficient material"]

1. e4 {[%clk 0:03:00.9]} 1... c5 {[%clk 0:03:00]} 2. Nf3 {[%clk 0:02:58.4]} 2...
d6 {[%clk 0:03:00.1]} 3. Bc4 {[%clk 0:02:56]} 3... Nc6 {[%clk 0:02:58.4]} 4. c3
{[%clk 0:02:52.2]} 4... Nf6 {[%clk 0:02:58.4]} 5. d3 {[%clk 0:02:52]} 5... Bg4
{[%clk 0:02:56.4]} 6. h3 {[%clk 0:02:49.5]} 6... Bh5 {[%clk 0:02:52.6]} 7. Bf4
{[%clk 0:02:45]} 7... e6 {[%clk 0:02:52.5]} 8. Nbd2 {[%clk 0:02:44.4]} 8... Be7
{[%clk 0:02:50.6]} 9. Bb3 {[%clk 0:02:37]} 9... O-O {[%clk 0:02:49.6]} 10. O-O
{[%clk 0:02:37.4]} 10... a6 {[%clk 0:02:45.9]} 11. Re1 {[%clk 0:02:33.4]} 11...
b5 {[%clk 0:02:45.1]} 12. Qe2 {[%clk 0:02:21.2]} 12... d5 {[%clk 0:02:44]} 13.
e5 {[%clk 0:02:18.6]} 13... Nd7 {[%clk 0:02:43.1]} 14. Qe3 {[%clk 0:02:17.9]}
14... Bg6 {[%clk 0:02:42.3]} 15. d4 {[%clk 0:02:05.3]} 15... Rc8 {[%clk
0:02:41.2]} 16. h4 {[%clk 0:01:50.8]} 16... Na5 {[%clk 0:02:29.6]} 17. Bg5
{[%clk 0:01:44.5]} 17... Nc4 {[%clk 0:02:25.7]} 18. Nxc4 {[%clk 0:01:33.3]}
18... dxc4 {[%clk 0:02:24.7]} 19. Bd1 {[%clk 0:01:31.1]} 19... Nb6 {[%clk
0:02:24.4]} 20. dxc5 {[%clk 0:01:25.1]} 20... Nd5 {[%clk 0:02:23.3]} 21. Qd4
{[%clk 0:01:24.8]} 21... h6 {[%clk 0:02:17.2]} 22. Bxe7 {[%clk 0:01:20.8]} 22...
Qxe7 {[%clk 0:02:18.1]} 23. a4 {[%clk 0:01:14.7]} 23... Qxc5 {[%clk 0:02:14.4]}
24. axb5 {[%clk 0:01:13]} 24... axb5 {[%clk 0:02:13]} 25. Ra5 {[%clk 0:01:04.4]}
25... Rfd8 {[%clk 0:02:09.8]} 26. Qxc5 {[%clk 0:00:55.6]} 26... Rxc5 {[%clk
0:02:10.7]} 27. Nd4 {[%clk 0:00:55.8]} 27... Nf4 {[%clk 0:02:08.2]} 28. Be2
{[%clk 0:00:51]} 28... Rxe5 {[%clk 0:02:03.6]} 29. Rxb5 {[%clk 0:00:49.2]} 29...
Rxb5 {[%clk 0:01:56.5]} 30. Nxb5 {[%clk 0:00:50.1]} 30... Rb8 {[%clk 0:01:57.4]}
31. Bxc4 {[%clk 0:00:49.4]} 31... Bd3 {[%clk 0:01:56.9]} 32. Nd6 {[%clk
0:00:18.2]} 32... Rxb2 {[%clk 0:01:55.6]} 33. Re3 {[%clk 0:00:05.6]} 33... Bxc4
{[%clk 0:01:55.2]} 34. Nxc4 {[%clk 0:00:05.1]} 34... Rc2 {[%clk 0:01:55.2]} 35.
Ne5 {[%clk 0:00:03.3]} 35... Rxc3 {[%clk 0:01:53.9]} 36. Rxc3 {[%clk 0:00:02.8]}
36... Ne2+ {[%clk 0:01:54.3]} 37. Kf1 {[%clk 0:00:03.4]} 37... Nxc3 {[%clk
0:01:55.2]} 38. g3 {[%clk 0:00:03.8]} 38... Nd5 {[%clk 0:01:55.4]} 39. Kg2
{[%clk 0:00:03.8]} 39... h5 {[%clk 0:01:55]} 40. Nc6 {[%clk 0:00:04]} 40... f6
{[%clk 0:01:55]} 41. Kf3 {[%clk 0:00:04.5]} 41... Kf7 {[%clk 0:01:55.3]} 42.
Nd8+ {[%clk 0:00:04.9]} 42... Ke7 {[%clk 0:01:54.8]} 43. Nc6+ {[%clk 0:00:05.3]}
43... Kd6 {[%clk 0:01:55]} 44. Nd4 {[%clk 0:00:05.8]} 44... g6 {[%clk
0:01:53.3]} 45. Ke4 {[%clk 0:00:05.5]} 45... e5 {[%clk 0:01:50.5]} 46. Nb5+
{[%clk 0:00:04.3]} 46... Ke6 {[%clk 0:01:50.6]} 47. Na3 {[%clk 0:00:03.6]} 47...
f5+ {[%clk 0:01:50.4]} 48. Kf3 {[%clk 0:00:04.1]} 48... e4+ {[%clk 0:01:50.6]}
49. Ke2 {[%clk 0:00:03.8]} 49... f4 {[%clk 0:01:50.3]} 50. Nc4 {[%clk 0:00:04]}
50... Kf5 {[%clk 0:01:49.6]} 51. Nd6+ {[%clk 0:00:02.4]} 51... Ke5 {[%clk
0:01:49.9]} 52. Nf7+ {[%clk 0:00:02.8]} 52... Kf6 {[%clk 0:01:48]} 53. Nd6
{[%clk 0:00:03.2]} 53... Ke5 {[%clk 0:01:46.3]} 54. Nf7+ {[%clk 0:00:03.4]}
54... Ke6 {[%clk 0:01:46.1]} 55. Ng5+ {[%clk 0:00:03]} 55... Kf5 {[%clk
0:01:46.1]} 56. Nf7 {[%clk 0:00:03.4]} 56... f3+ {[%clk 0:01:46.2]} 57. Kf1
{[%clk 0:00:03]} 57... e3 {[%clk 0:01:41.3]} 58. fxe3 {[%clk 0:00:02.8]} 58...
Kf6 {[%clk 0:01:23.4]} 59. Ng5 {[%clk 0:00:02.2]} 59... Nxe3+ {[%clk 0:01:19.3]}
60. Kf2 {[%clk 0:00:02.7]} 60... Ng4+ {[%clk 0:01:20.2]} 61. Kxf3 {[%clk
0:00:03.3]} 61... Ne5+ {[%clk 0:01:21.1]} 62. Kf4 {[%clk 0:00:03.4]} 62... Nd3+
{[%clk 0:01:21.3]} 63. Ke4 {[%clk 0:00:04]} 63... Nc5+ {[%clk 0:01:22.2]} 64.
Kd5 {[%clk 0:00:04.1]} 64... Nd3 {[%clk 0:01:19.5]} 65. Ke4 {[%clk 0:00:04.2]}
65... Nf2+ {[%clk 0:01:18.6]} 66. Kf3 {[%clk 0:00:05.1]} 66... Ng4 {[%clk
0:01:18.6]} 67. Ne4+ {[%clk 0:00:05.5]} 67... Kf5 {[%clk 0:01:18.9]} 68. Nd6+
{[%clk 0:00:05.7]} 68... Ke6 {[%clk 0:01:19.1]} 69. Nc4 {[%clk 0:00:06]} 69...
Kd5 {[%clk 0:01:16.4]} 70. Ne3+ {[%clk 0:00:03.4]} 70... Nxe3 {[%clk 0:01:16.5]}
71. Kxe3 {[%clk 0:00:04.3]} 71... Ke5 {[%clk 0:01:17.4]} 72. Kf3 {[%clk
0:00:04.5]} 72... Kf5 {[%clk 0:01:18.1]} 73. Kf2 {[%clk 0:00:04.9]} 73... Kg4
{[%clk 0:01:19]} 74. Kg2 {[%clk 0:00:05.2]} 74... g5 {[%clk 0:01:19.9]} 75. hxg5
{[%clk 0:00:06]} 75... Kxg5 {[%clk 0:01:20.8]} 76. Kh3 {[%clk 0:00:06.9]} 76...
Kg6 {[%clk 0:01:20.6]} 77. g4 {[%clk 0:00:07]} 77... Kh6 {[%clk 0:01:21.5]} 78.
gxh5 {[%clk 0:00:06.8]} 78... Kxh5 {[%clk 0:01:22.4]} 1/2-1/2

[Event "*** SCC Grand Prix: Titled Tuesday Blitz"]
[Site "Chess.com"]
[Date "2020.09.08"]
[Round "5"]
[White "azikom"]
[Black "valeriocarnicelli"]
[Result "1-0"]
[WhiteElo "2640"]
[BlackElo "2472"]
[TimeControl "180+1"]
[EndTime "10:57:17 PDT"]
[Termination "azikom won by resignation"]

1. d4 {[%clk 0:02:59.4]} 1... Nf6 {[%clk 0:03:00]} 2. Nc3 {[%clk 0:02:58.4]}
2... d5 {[%clk 0:02:59.3]} 3. Bg5 {[%clk 0:02:57.1]} 3... c6 {[%clk 0:02:58.6]}
4. e3 {[%clk 0:02:56.6]} 4... Qb6 {[%clk 0:02:57.1]} 5. Rb1 {[%clk 0:02:54.2]}
5... Nbd7 {[%clk 0:02:57]} 6. Nf3 {[%clk 0:02:53.3]} 6... e6 {[%clk 0:02:57.2]}
7. Bd3 {[%clk 0:02:51.7]} 7... h6 {[%clk 0:02:57.2]} 8. Bh4 {[%clk 0:02:51.2]}
8... Bd6 {[%clk 0:02:56.9]} 9. O-O {[%clk 0:02:50.2]} 9... Qc7 {[%clk
0:02:56.2]} 10. Bg3 {[%clk 0:02:49.3]} 10... O-O {[%clk 0:02:54.9]} 11. Ne2
{[%clk 0:02:47.9]} 11... c5 {[%clk 0:02:50.1]} 12. c4 {[%clk 0:02:42.5]} 12...
Bxg3 {[%clk 0:02:39.1]} 13. hxg3 {[%clk 0:02:41.9]} 13... cxd4 {[%clk
0:02:38.8]} 14. Nexd4 {[%clk 0:02:39.4]} 14... dxc4 {[%clk 0:02:32.8]} 15. Rc1
{[%clk 0:02:38.9]} 15... Nb6 {[%clk 0:02:31.5]} 16. b3 {[%clk 0:02:16.7]} 16...
c3 {[%clk 0:02:27.8]} 17. Nb5 {[%clk 0:02:15.4]} 17... Qe7 {[%clk 0:02:23.3]}
18. Nxc3 {[%clk 0:02:14.8]} 18... Bd7 {[%clk 0:02:19]} 19. Qe2 {[%clk
0:02:09.3]} 19... Rac8 {[%clk 0:02:17.6]} 20. Rfd1 {[%clk 0:02:03.6]} 20... Rfd8
{[%clk 0:02:14.3]} 21. Nd4 {[%clk 0:02:01.5]} 21... a6 {[%clk 0:02:09.1]} 22.
Qf3 {[%clk 0:01:59.4]} 22... Nbd5 {[%clk 0:02:06.7]} 23. Nxd5 {[%clk 0:01:57.1]}
23... Nxd5 {[%clk 0:02:07.6]} 24. Qe4 {[%clk 0:01:47.3]} 24... g6 {[%clk
0:02:01.8]} 25. Qe5 {[%clk 0:01:42.1]} 25... Be8 {[%clk 0:01:50.4]} 26. Bc4
{[%clk 0:01:28.6]} 26... Qf6 {[%clk 0:01:26.6]} 27. Qxf6 {[%clk 0:01:26.7]}
27... Nxf6 {[%clk 0:01:27.5]} 28. f3 {[%clk 0:01:21.9]} 28... e5 {[%clk
0:01:17.8]} 29. Ne2 {[%clk 0:01:18.3]} 29... Bc6 {[%clk 0:01:16.3]} 30. e4
{[%clk 0:01:16.2]} 30... Kf8 {[%clk 0:00:58.8]} 31. Kf2 {[%clk 0:01:15.4]} 31...
Ke7 {[%clk 0:00:57.6]} 32. Ke3 {[%clk 0:01:15.7]} 32... Rxd1 {[%clk 0:00:55.5]}
33. Rxd1 {[%clk 0:01:15.2]} 33... Ne8 {[%clk 0:00:41]} 34. g4 {[%clk 0:01:10.8]}
34... Nd6 {[%clk 0:00:36.8]} 35. Bd3 {[%clk 0:01:10.6]} 35... Bb5 {[%clk
0:00:36.2]} 36. Rh1 {[%clk 0:01:08.3]} 36... Rh8 {[%clk 0:00:24.3]} 37. a4
{[%clk 0:01:06]} 37... Bxd3 {[%clk 0:00:23.6]} 38. Kxd3 {[%clk 0:01:06.3]} 38...
Ke6 {[%clk 0:00:21.6]} 39. Nc3 {[%clk 0:01:05.4]} 39... Nc8 {[%clk 0:00:16.6]}
40. Nd5 {[%clk 0:01:02.6]} 40... Ne7 {[%clk 0:00:16.8]} 41. Ne3 {[%clk
0:00:56.6]} 41... Rd8+ {[%clk 0:00:15.8]} 42. Kc3 {[%clk 0:00:55.4]} 42... Rh8
{[%clk 0:00:15.5]} 43. Nc4 {[%clk 0:00:51.8]} 43... Rc8 {[%clk 0:00:14]} 44. a5
{[%clk 0:00:49.5]} 44... Nc6 {[%clk 0:00:11.2]} 45. Kb2 {[%clk 0:00:44.9]} 45...
Rh8 {[%clk 0:00:08.5]} 46. Kc3 {[%clk 0:00:40.7]} 46... f6 {[%clk 0:00:08]} 47.
b4 {[%clk 0:00:36.6]} 47... Nd4 {[%clk 0:00:05.4]} 48. Ne3 {[%clk 0:00:31.2]}
48... Rc8+ {[%clk 0:00:04.5]} 49. Kd3 {[%clk 0:00:30.6]} 49... Nc6 {[%clk
0:00:04.4]} 50. Nd5 {[%clk 0:00:30.7]} 50... Rd8 {[%clk 0:00:04]} 51. Kc4 {[%clk
0:00:29.1]} 51... Rh8 {[%clk 0:00:02.4]} 52. Kc5 {[%clk 0:00:28.3]} 52... Ne7
{[%clk 0:00:02.7]} 53. Nxe7 {[%clk 0:00:26.5]} 53... Kxe7 {[%clk 0:00:03.6]} 54.
Kb6 {[%clk 0:00:26.9]} 54... Ke6 {[%clk 0:00:02.1]} 55. Kxb7 {[%clk 0:00:26.1]}
1-0

[Event "*** SCC Grand Prix: Titled Tuesday Blitz"]
[Site "Chess.com"]
[Date "2020.09.08"]
[Round "5"]
[White "plumalka"]
[Black "Elegance_Riks"]
[Result "0-1"]
[WhiteElo "2416"]
[BlackElo "2611"]
[TimeControl "180+1"]
[EndTime "10:57:17 PDT"]
[Termination "Elegance_Riks won by resignation"]

1. e4 {[%clk 0:03:00.9]} 1... c6 {[%clk 0:02:59.6]} 2. d4 {[%clk 0:02:50.1]}
2... d5 {[%clk 0:02:59.1]} 3. e5 {[%clk 0:02:50.1]} 3... Bf5 {[%clk 0:02:56.5]}
4. c4 {[%clk 0:02:48.4]} 4... e6 {[%clk 0:02:55.2]} 5. Nc3 {[%clk 0:02:47.5]}
5... Bb4 {[%clk 0:02:54.2]} 6. Qb3 {[%clk 0:02:46]} 6... Qb6 {[%clk 0:02:37.9]}
7. c5 {[%clk 0:02:36.6]} 7... Bxc3+ {[%clk 0:02:35.5]} 8. Qxc3 {[%clk
0:02:36.6]} 8... Qc7 {[%clk 0:02:35.4]} 9. b4 {[%clk 0:02:30.7]} 9... Ne7 {[%clk
0:02:34.7]} 10. Ne2 {[%clk 0:02:29.2]} 10... O-O {[%clk 0:02:33.3]} 11. Ng3
{[%clk 0:02:28.6]} 11... Bg6 {[%clk 0:02:33.5]} 12. h4 {[%clk 0:02:28.6]} 12...
h6 {[%clk 0:02:33]} 13. h5 {[%clk 0:02:26.1]} 13... Bh7 {[%clk 0:02:33.2]} 14.
Bd3 {[%clk 0:02:26.2]} 14... Bxd3 {[%clk 0:02:24.7]} 15. Qxd3 {[%clk 0:02:26]}
15... a5 {[%clk 0:02:24.8]} 16. Bd2 {[%clk 0:02:21.6]} 16... axb4 {[%clk
0:02:20.9]} 17. Bxb4 {[%clk 0:02:22.5]} 17... Na6 {[%clk 0:02:16.2]} 18. Ba3
{[%clk 0:02:18.4]} 18... Qa5+ {[%clk 0:02:15.9]} 19. Ke2 {[%clk 0:02:09.4]}
19... Nc7 {[%clk 0:02:07.9]} 20. Bb2 {[%clk 0:02:01.1]} 20... Qb5 {[%clk
0:02:06.6]} 21. Rhb1 {[%clk 0:01:57]} 21... Ra4 {[%clk 0:02:00.1]} 22. Bc1
{[%clk 0:01:43.6]} 22... Qxd3+ {[%clk 0:01:59.4]} 23. Kxd3 {[%clk 0:01:44.5]}
23... Nb5 {[%clk 0:02:00]} 24. Ne2 {[%clk 0:01:36]} 24... Rfa8 {[%clk 0:02:00]}
25. a3 {[%clk 0:01:30.6]} 25... Nf5 {[%clk 0:01:59.1]} 26. Nc3 {[%clk
0:01:15.7]} 26... Nxc3 {[%clk 0:01:54.1]} 27. Kxc3 {[%clk 0:01:16.6]} 27... Rc4+
{[%clk 0:01:47.4]} 28. Kd3 {[%clk 0:01:12.2]} 28... Rxd4+ {[%clk 0:01:47.5]} 29.
Ke2 {[%clk 0:01:05.6]} 29... Ra7 {[%clk 0:01:47.5]} 30. f3 {[%clk 0:00:57.8]}
30... Rc4 {[%clk 0:01:47.1]} 31. Kd3 {[%clk 0:00:50.5]} 31... Nd4 {[%clk
0:01:42.3]} 32. Be3 {[%clk 0:00:46.7]} 32... Nc2 {[%clk 0:01:42.4]} 33. Ra2
{[%clk 0:00:38.7]} 33... Nxe3 {[%clk 0:01:42.4]} 34. Kxe3 {[%clk 0:00:38.7]}
34... Rxc5 {[%clk 0:01:42.8]} 35. a4 {[%clk 0:00:37.5]} 35... Rca5 {[%clk
0:01:41.5]} 36. Rb6 {[%clk 0:00:35.5]} 36... c5 {[%clk 0:01:36.6]} 37. Rab2
{[%clk 0:00:30.7]} 37... Rxa4 {[%clk 0:01:36.4]} 38. Rxb7 {[%clk 0:00:30.6]}
38... Ra3+ {[%clk 0:01:29.9]} 39. Kf4 {[%clk 0:00:26.5]} 39... R3a4+ {[%clk
0:01:15.8]} 40. Ke3 {[%clk 0:00:24.3]} 40... Kh7 {[%clk 0:01:10.7]} 41. Rb8
{[%clk 0:00:21.5]} 41... g6 {[%clk 0:00:56.3]} 42. g4 {[%clk 0:00:18.7]} 42...
gxh5 {[%clk 0:00:51.8]} 43. gxh5 {[%clk 0:00:19.6]} 43... Rh4 {[%clk 0:00:51.5]}
44. Rg2 {[%clk 0:00:19.4]} 44... Ra3+ {[%clk 0:00:51.4]} 45. Kf2 {[%clk
0:00:13.8]} 45... Ra2+ {[%clk 0:00:51.4]} 46. Kg3 {[%clk 0:00:13.4]} 46... Rxg2+
{[%clk 0:00:51.5]} 47. Kxh4 {[%clk 0:00:12.5]} 47... c4 {[%clk 0:00:49.2]} 48.
Rb7 {[%clk 0:00:10.2]} 48... Kg7 {[%clk 0:00:48.9]} 49. Rc7 {[%clk 0:00:10.6]}
49... Rg1 {[%clk 0:00:49]} 50. Kh3 {[%clk 0:00:10.4]} 50... Rg5 {[%clk
0:00:48.5]} 51. f4 {[%clk 0:00:09.6]} 51... Rxh5+ {[%clk 0:00:48.6]} 52. Kg4
{[%clk 0:00:10.5]} 52... Rh1 {[%clk 0:00:48.2]} 53. f5 {[%clk 0:00:10.8]} 53...
Rg1+ {[%clk 0:00:48.2]} 54. Kh5 {[%clk 0:00:10.7]} 54... Rg5+ {[%clk 0:00:47.1]}
55. Kh4 {[%clk 0:00:09.7]} 55... Rxf5 {[%clk 0:00:47.4]} 56. Rc8 {[%clk
0:00:07.1]} 56... Rxe5 {[%clk 0:00:47.6]} 57. Rb8 {[%clk 0:00:07.4]} 57... c3
{[%clk 0:00:47.3]} 58. Rb3 {[%clk 0:00:07.1]} 58... Re4+ {[%clk 0:00:47.1]} 59.
Kh5 {[%clk 0:00:07]} 59... c2 {[%clk 0:00:47.6]} 60. Rg3+ {[%clk 0:00:03.8]}
60... Kf8 {[%clk 0:00:47.5]} 61. Rg7 {[%clk 0:00:03.4]} 61... Rh4+ {[%clk
0:00:44.8]} 62. Kxh4 {[%clk 0:00:02.6]} 62... Kxg7 {[%clk 0:00:44.6]} 0-1

[Event "*** SCC Grand Prix: Titled Tuesday Blitz"]
[Site "Chess.com"]
[Date "2020.09.08"]
[Round "5"]
[White "juli2512"]
[Black "MarkoPe"]
[Result "1-0"]
[WhiteElo "2045"]
[BlackElo "2151"]
[TimeControl "180+1"]
[EndTime "10:57:17 PDT"]
[Termination "juli2512 won by checkmate"]

1. e4 {[%clk 0:03:00.9]} 1... c5 {[%clk 0:02:59.3]} 2. Nf3 {[%clk 0:02:58.6]}
2... d6 {[%clk 0:02:59.3]} 3. d3 {[%clk 0:02:57.7]} 3... Nf6 {[%clk 0:02:58.3]}
4. g3 {[%clk 0:02:58.2]} 4... Nc6 {[%clk 0:02:57.7]} 5. Bg2 {[%clk 0:02:58.5]}
5... g6 {[%clk 0:02:58]} 6. O-O {[%clk 0:02:58]} 6... Bh6 {[%clk 0:02:58]} 7.
Bxh6 {[%clk 0:02:55.6]} 7... Be6 {[%clk 0:02:50.6]} 8. Bg7 {[%clk 0:02:39.5]}
8... Rg8 {[%clk 0:02:50.3]} 9. Bxf6 {[%clk 0:02:39.2]} 9... exf6 {[%clk
0:02:51.2]} 10. Nc3 {[%clk 0:02:36.7]} 10... Qd7 {[%clk 0:02:50.7]} 11. Re1
{[%clk 0:02:34.5]} 11... O-O-O {[%clk 0:02:50.3]} 12. d4 {[%clk 0:02:33.5]}
12... cxd4 {[%clk 0:02:35.1]} 13. Nxd4 {[%clk 0:02:33.2]} 13... Bh3 {[%clk
0:02:35.1]} 14. Nd5 {[%clk 0:02:20.3]} 14... Bxg2 {[%clk 0:02:31.5]} 15. Kxg2
{[%clk 0:02:17.9]} 15... Rh8 {[%clk 0:02:05.2]} 16. Nxc6 {[%clk 0:02:06.1]}
16... bxc6 {[%clk 0:02:01.1]} 17. Nxf6 {[%clk 0:01:54.4]} 17... Qe7 {[%clk
0:01:56.8]} 18. Qd4 {[%clk 0:01:29.5]} 18... h5 {[%clk 0:01:53]} 19. h4 {[%clk
0:01:18]} 19... Kb8 {[%clk 0:01:13.9]} 20. Re3 {[%clk 0:01:07]} 20... Ka8 {[%clk
0:01:11.2]} 21. Rae1 {[%clk 0:00:57.4]} 21... Rb8 {[%clk 0:01:07.1]} 22. b3
{[%clk 0:00:54.2]} 22... Rb5 {[%clk 0:01:01.1]} 23. e5 {[%clk 0:00:36]} 23... d5
{[%clk 0:00:51.7]} 24. c3 {[%clk 0:00:22.6]} 24... Qe6 {[%clk 0:00:30.4]} 25.
Qf4 {[%clk 0:00:21.5]} 25... Rc5 {[%clk 0:00:27.1]} 26. a4 {[%clk 0:00:17.9]}
26... Ra5 {[%clk 0:00:22.7]} 27. Rf3 {[%clk 0:00:15.4]} 27... Ra6 {[%clk
0:00:21.7]} 28. Ree3 {[%clk 0:00:14.5]} 28... Rb6 {[%clk 0:00:21.6]} 29. b4
{[%clk 0:00:14.2]} 29... Rd8 {[%clk 0:00:16.7]} 30. a5 {[%clk 0:00:13.8]} 30...
Rb7 {[%clk 0:00:16.8]} 31. Rd3 {[%clk 0:00:13.7]} 31... Re7 {[%clk 0:00:16.8]}
32. Rfe3 {[%clk 0:00:13.6]} 32... Qc8 {[%clk 0:00:14.1]} 33. Qg5 {[%clk
0:00:13.3]} 33... Qc7 {[%clk 0:00:12.8]} 34. f4 {[%clk 0:00:13.4]} 34... Qb7
{[%clk 0:00:12.4]} 35. Rd4 {[%clk 0:00:13.3]} 35... Rc7 {[%clk 0:00:10.6]} 36.
f5 {[%clk 0:00:13.4]} 36... gxf5 {[%clk 0:00:08.4]} 37. Qxf5 {[%clk 0:00:12.5]}
37... Qb5 {[%clk 0:00:08.3]} 38. Qf3 {[%clk 0:00:12.2]} 38... Qa4 {[%clk
0:00:07.7]} 39. Qf2 {[%clk 0:00:11.6]} 39... Rb7 {[%clk 0:00:05.7]} 40. Nxh5
{[%clk 0:00:11.2]} 40... Rdb8 {[%clk 0:00:05.3]} 41. Nf4 {[%clk 0:00:10.8]}
41... Rg8 {[%clk 0:00:05]} 42. Nd3 {[%clk 0:00:10]} 42... Qb3 {[%clk 0:00:04.7]}
43. Nc5 {[%clk 0:00:09.9]} 43... Qa3 {[%clk 0:00:03.3]} 44. Nxb7 {[%clk
0:00:09.9]} 44... Kxb7 {[%clk 0:00:04.2]} 45. Qxf7+ {[%clk 0:00:09.9]} 45... Ka6
{[%clk 0:00:04.1]} 46. Qxg8 {[%clk 0:00:09.8]} 46... Qb2+ {[%clk 0:00:04.3]} 47.
Kh3 {[%clk 0:00:09.8]} 47... Qc1 {[%clk 0:00:05.2]} 48. Rf3 {[%clk 0:00:09.5]}
48... Qe1 {[%clk 0:00:03.7]} 49. Kg4 {[%clk 0:00:09.2]} 49... Qg1 {[%clk
0:00:03.7]} 50. Qe6 {[%clk 0:00:08.5]} 50... Qc1 {[%clk 0:00:02]} 51. Qxc6#
{[%clk 0:00:08.4]} 1-0